fUST/lending_fUST_20241112
["ID","MTS","AMOUNT","RATE_DAILY","PERIOD"]
[341996025,1731351051503,-500.0,0.00022191,2]
[341996026,1731351051512,-500.0,0.00022191,2]
[341996027,1731351051522,-500.0,0.00022191,2]
[341996028,1731351051530,-500.0,0.00022191,2]
[341996029,1731351051539,-301.38397587,0.00022191,2]
[341996030,1731351051548,-151.0,0.00022191,7]
[341996031,1731351051557,-337.64558045,0.00022191,2]
[341996032,1731351051567,-500.0,0.00022191,2]
[341996033,1731351051576,-500.0,0.00022191,2]
[341996034,1731351051585,-390.72601042,0.00022191,2]
[341996035,1731351051595,-1310.51,0.00022191,2]
[341996036,1731351051604,-500.0,0.00022191,2]
[341996037,1731351051614,-500.0,0.00022191,2]
[341996038,1731351051622,-416.11508982,0.00022191,2]
[341996039,1731351051632,-500.0,0.00022191,2]
[341996040,1731351051641,-1679.58,0.00022191,2]
[341996041,1731351051650,-509.71,0.00022191,2]
[341996042,1731351051659,-500.0,0.00022191,2]
[341996043,1731351051668,-1106.48,0.00022191,2]
[341996044,1731351051677,-500.0,0.00022191,2]
[341996045,1731351051686,-500.0,0.00022191,2]
[341996046,1731351051695,-617.95,0.00022191,2]
[341996047,1731351051704,-567.992979,0.00022191,7]
[341996048,1731351051713,-567.992979,0.00022191,7]
[341996049,1731351051722,-500.0,0.00022191,2]
[341996050,1731351051731,-567.992979,0.00022191,7]
[341996051,1731351051740,-606.38,0.00022191,2]
[341996052,1731351051749,-567.992979,0.00022191,7]
[341996053,1731351051759,-151.0,0.00022191,2]
[341996054,1731351051769,-151.0,0.00022191,2]
[341996055,1731351051778,-410.36937227,0.00022191,2]
[341996056,1731351051787,-3771.03,0.00022191,2]
[341996057,1731351051796,-1752.08,0.00022191,2]
[341996058,1731351051808,-177.62509506,0.00022191,2]
[341996059,1731351051817,-500.0,0.00022191,2]
[341996060,1731351051827,-1149.11,0.00022191,2]
[341996061,1731351051837,-500.0,0.00022191,2]
[341996062,1731351051846,-500.0,0.00022191,2]
[341996063,1731351051855,-279.98189392,0.00022191,2]
[341996064,1731351051864,-519.48,0.00022191,2]
[341996065,1731351051873,-562.64730934,0.00022191,2]
[341996066,1731351051883,-1646.48,0.00022191,2]
[341996067,1731351051891,-500.0,0.00022191,2]
[341996068,1731351051900,-500.0,0.00022191,2]
[341996069,1731351051910,-500.0,0.00022191,2]
[341996070,1731351051919,-4155.43,0.00022191,2]
[341996071,1731351051928,-151.0,0.00022191,7]
[341996072,1731351051937,-151.0,0.00022191,7]
[341996073,1731351051946,-500.0,0.00022191,2]
[341996074,1731351051956,-1467.22,0.00022191,2]
[341996075,1731351051965,-4329.47,0.00022191,2]
[341996076,1731351051975,-500.0,0.00022191,2]
[341996077,1731351051985,-500.0,0.00022191,2]
[341996078,1731351051995,-500.0,0.00022191,2]
[341996079,1731351052005,-500.0,0.00022191,2]
[341996080,1731351052015,-500.0,0.00022191,2]
[341996081,1731351052024,-500.0,0.00022191,2]
[341996082,1731351052033,-500.0,0.00022191,2]
[341996083,1731351052044,-500.0,0.00022191,2]
[341996084,1731351052054,-500.0,0.00022191,2]
[341996085,1731351052063,-835.22,0.00022191,2]
[341996086,1731351052073,-500.0,0.00022191,2]
[341996087,1731351052083,-1261.72,0.00022191,2]
[341996088,1731351052092,-500.0,0.00022191,2]
[341996089,1731351052102,-500.0,0.00022191,2]
[341996090,1731351052111,-500.0,0.00022191,2]
[341996091,1731351052120,-779.77,0.00022191,2]
[341996092,1731351052129,-239.11447741,0.00022191,2]
[341996093,1731351052138,-17411.59,0.00022191,2]
[341996094,1731351052147,-500.0,0.00022191,2]
[341996095,1731351052157,-500.0,0.00022191,2]
[341996096,1731351052166,-646.39,0.00022191,2]
[341996097,1731351052175,-3592.33,0.00022191,2]
[341996098,1731351052184,-723.56,0.00022191,2]
[341996099,1731351052194,-518.77,0.00022191,2]
[341996100,1731351052203,-609.39,0.00022191,2]
[341996101,1731351052213,-500.0,0.00022191,2]
[341996102,1731351052222,-500.0,0.00022191,2]
[341996103,1731351052232,-838.19,0.00022191,2]
[341996104,1731351052241,-1642.81,0.00022191,2]
[341996105,1731351052253,-1210.02,0.00022191,2]
[341996106,1731351052263,-4560.50205096,0.000222,2]
[341996107,1731351052273,-4560.50205094,0.000222,2]
[341996108,1731351052283,-4560.50205094,0.000222,2]
[341996109,1731351052292,-4560.50205094,0.000222,2]
[341996110,1731351052301,-36458.49649153,0.000222,2]
[341996111,1731351052311,-151.0,0.000222,7]
[341996112,1731351052320,-151.0,0.000222,7]
[341996113,1731351052331,-266.654026,0.000222,7]
[341996114,1731351052340,-266.654026,0.000222,7]
[341996115,1731351052350,-223.426154,0.000222,7]
[341996116,1731351052360,-197.434809,0.000222,7]
[341996117,1731351052370,-197.434809,0.000222,7]
[341996118,1731351052379,-265.279543,0.000222,3]
[341996119,1731351052389,-151.0,0.000222,7]
[341996120,1731351052401,-617.931559,0.000222,7]
[341996121,1731351052410,-617.931559,0.000222,7]
[341996122,1731351052420,-187.995473,0.000222,7]
[341996123,1731351052429,-187.995473,0.000222,7]
[341996124,1731351052439,-567.992979,0.000222,7]
[341996125,1731351052448,-567.992979,0.000222,7]
[341996126,1731351052458,-151.0,0.000222,2]
[341996127,1731351052468,-151.0,0.000222,7]
[341996128,1731351052478,-166.666666,0.00022431,2]
[341996129,1731351052487,-1009.81210025,0.0002244,2]
[341996130,1731351052497,-197.434809,0.0002244,7]
[341996131,1731351052510,-197.434809,0.0002244,7]
[341996132,1731351052520,-151.0,0.0002244,7]
[341996133,1731351052530,-3243.1167263,0.00022464,2]
[341996134,1731351052539,-151.0,0.00022465,7]
[341996135,1731351052549,-151.0,0.00022465,7]
[341996136,1731351052558,-151.0,0.00022465,7]
[341996137,1731351052568,-151.0,0.00022465,7]
[341996138,1731351052577,-500.0,0.00022465,2]
[341996139,1731351052586,-588.47644143,0.00022465,2]
[341996140,1731351052596,-500.0,0.00022465,2]
[341996141,1731351052605,-500.0,0.00022465,2]
[341996142,1731351052615,-266.654026,0.00022465,7]
[341996143,1731351052624,-266.654026,0.00022465,7]
[341996144,1731351052633,-500.0,0.00022465,2]
[341996145,1731351052644,-500.0,0.00022465,2]
[341996146,1731351052653,-598.8043063,0.00022465,2]
[341996147,1731351052663,-500.0,0.00022465,2]
[341996148,1731351052672,-500.0,0.00022465,2]
[341996149,1731351052681,-500.0,0.00022465,2]
[341996150,1731351052690,-500.0,0.00022465,2]
[341996151,1731351052700,-500.0,0.00022465,2]
[341996152,1731351052709,-1924.03,0.00022465,2]
[341996153,1731351052821,-394.43220433,0.00022465,2]
[341996154,1731351052832,-500.0,0.00022465,2]
[341996155,1731351052843,-581.42249689,0.00022465,2]
[341996156,1731351052853,-574.72,0.00022465,2]
[341996157,1731351052863,-789.58,0.00022465,2]
[341996158,1731351052873,-991.28,0.00022465,2]
[341996159,1731351052883,-1962.38,0.00022465,2]
[341996160,1731351052892,-500.0,0.00022465,2]
[341996161,1731351052902,-628.5863512,0.00022465,2]
[341996162,1731351052912,-197.434809,0.00022465,7]
[341996163,1731351052922,-197.434809,0.00022465,7]
[341996164,1731351052932,-500.0,0.00022465,2]
[341996165,1731351052941,-1584.56,0.00022465,2]
[341996166,1731351052951,-259.64058802,0.00022465,2]
[341996167,1731351052960,-675.3,0.00022465,2]
[341996168,1731351052971,-500.0,0.00022465,2]
[341996169,1731351052981,-253.45234017,0.00022465,2]
[341996170,1731351052990,-500.0,0.00022465,2]
[341996171,1731351053003,-500.0,0.00022465,2]
[341996172,1731351053012,-552.74220727,0.00022465,2]
[341996173,1731351053022,-500.0,0.00022465,2]
[341996174,1731351053033,-151.0,0.00022465,7]
[341996175,1731351053042,-1078.92,0.00022465,2]
[341996176,1731351053052,-500.0,0.00022465,2]
[341996177,1731351053062,-500.0,0.00022465,2]
[341996178,1731351053073,-617.931559,0.00022465,7]
[341996179,1731351053084,-617.931559,0.00022465,7]
[341996180,1731351053095,-617.931559,0.00022465,7]
[341996181,1731351053105,-617.931559,0.00022465,7]
[341996182,1731351053119,-500.0,0.00022465,2]
[341996183,1731351053130,-187.995473,0.00022465,7]
[341996184,1731351053141,-187.995473,0.00022465,7]
[341996185,1731351053151,-187.995473,0.00022465,7]
[341996186,1731351053162,-187.995473,0.00022465,7]
[341996187,1731351053172,-500.0,0.00022465,2]
[341996188,1731351053182,-500.0,0.00022465,2]
[341996189,1731351053191,-500.0,0.00022465,2]
[341996190,1731351053200,-204.36226985,0.00022465,2]
[341996191,1731351053210,-500.0,0.00022465,2]
[341996192,1731351053221,-500.0,0.00022465,2]
[341996193,1731351053231,-500.0,0.00022465,2]
[341996194,1731351053241,-500.0,0.00022465,2]
[341996195,1731351053252,-500.0,0.00022465,2]
[341996196,1731351053261,-1310.51,0.00022465,2]
[341996197,1731351053271,-500.0,0.00022465,2]
[341996198,1731351053281,-500.0,0.00022465,2]
[341996199,1731351053291,-500.0,0.00022465,2]
[341996200,1731351053300,-1679.58,0.00022465,2]
[341996201,1731351053310,-509.71,0.00022465,2]
[341996202,1731351053320,-252.02000003,0.00022465,2]
[341996203,1731351053330,-1106.48,0.00022465,2]
[341996204,1731351053341,-500.0,0.00022465,2]
[341996205,1731351053351,-500.0,0.00022465,2]
[341996206,1731351053361,-617.95,0.00022465,2]
[341996207,1731351053371,-567.992979,0.00022465,7]
[341996208,1731351053381,-567.992979,0.00022465,7]
[341996209,1731351053392,-606.38,0.00022465,2]
[341996210,1731351053405,-567.992979,0.00022465,7]
[341996211,1731351053415,-567.992979,0.00022465,7]
[341996212,1731351053424,-151.0,0.00022465,2]
[341996213,1731351053433,-151.0,0.00022465,2]
[341996214,1731351053443,-3771.03,0.00022465,2]
[341996215,1731351053453,-1752.08,0.00022465,2]
[341996216,1731351053463,-396.59313521,0.00022465,2]
[341996217,1731351053473,-1149.11,0.00022465,2]
[341996218,1731351053484,-357.46060731,0.00022465,2]
[341996219,1731351053493,-429.47797287,0.00022465,2]
[341996220,1731351053505,-519.48,0.00022465,2]
[341996221,1731351053514,-1646.48,0.00022465,2]
[341996222,1731351053524,-500.0,0.00022465,2]
[341996223,1731351053533,-500.0,0.00022465,2]
[341996224,1731351053543,-500.0,0.00022465,2]
[341996225,1731351053552,-4155.43,0.00022465,2]
[341996226,1731351053562,-219.321268,0.00022465,7]
[341996227,1731351053571,-1467.22,0.00022465,2]
[341996228,1731351053582,-500.0,0.00022465,2]
[341996229,1731351053592,-4329.47,0.00022465,2]
[341996230,1731351053602,-500.0,0.00022465,2]
[341996231,1731351053612,-500.0,0.00022465,2]
[341996232,1731351053621,-500.0,0.00022465,2]
[341996233,1731351053631,-500.0,0.00022465,2]
[341996234,1731351053640,-500.0,0.00022465,2]
[341996235,1731351053650,-500.0,0.00022465,2]
[341996236,1731351053658,-500.0,0.00022465,2]
[341996237,1731351053668,-500.0,0.00022465,2]
[341996238,1731351053678,-500.0,0.00022465,2]
[341996239,1731351053688,-835.22,0.00022465,2]
[341996240,1731351053697,-500.0,0.00022465,2]
[341996241,1731351053707,-1261.72,0.00022465,2]
[341996242,1731351053716,-500.0,0.00022465,2]
[341996243,1731351053725,-500.0,0.00022465,2]
[341996244,1731351053734,-500.0,0.00022465,2]
[341996245,1731351053744,-779.77,0.00022465,2]
[341996246,1731351053755,-17411.59,0.00022465,2]
[341996247,1731351053764,-500.0,0.00022465,2]
[341996248,1731351053774,-500.0,0.00022465,2]
[341996249,1731351053783,-646.39,0.00022465,2]
[341996250,1731351053792,-3592.33,0.00022465,2]
[341996251,1731351053801,-723.56,0.00022465,2]
[341996252,1731351053810,-518.77,0.00022465,2]
[341996253,1731351053822,-609.39,0.00022465,2]
[341996254,1731351053831,-500.0,0.00022465,2]
[341996255,1731351053840,-500.0,0.00022465,2]
[341996256,1731351053850,-838.19,0.00022465,2]
[341996257,1731351053859,-1642.81,0.00022465,2]
[341996258,1731351053868,-1210.02,0.00022465,2]
[341996259,1731351053878,-30513.20471372,0.00022512,2]
[341996260,1731351053888,-567.992979,0.00022512,7]
[341996261,1731351053897,-567.992979,0.00022512,7]
[341996262,1731351053906,-290.603097,0.00022512,2]
[341996263,1731351053916,-20818.97742259,0.00022555,2]
[341996264,1731351053925,-197.434809,0.00022555,7]
[341996265,1731351053935,-197.434809,0.00022555,7]
[341996266,1731351053945,-151.0,0.00022555,7]
[341996267,1731351053954,-617.931559,0.00022555,7]
[341996268,1731351053964,-617.931559,0.00022555,7]
[341996269,1731351053973,-187.995473,0.00022555,7]
[341996270,1731351053982,-187.995473,0.00022555,7]
[341996271,1731351053991,-150.112234,0.000226,5]
[341996272,1731351054001,-151.0,0.00022739,7]
[341996273,1731351054011,-151.0,0.00022739,7]
[341996274,1731351054020,-151.0,0.00022739,7]
[341996275,1731351054030,-151.0,0.00022739,7]
[341996276,1731351054039,-500.0,0.00022739,2]
[341996277,1731351054048,-500.0,0.00022739,2]
[341996278,1731351054058,-348.52391819,0.00022739,2]
[341996279,1731351054069,-266.654026,0.00022739,7]
[341996280,1731351054079,-266.654026,0.00022739,7]
[341996281,1731351054088,-266.654026,0.00022739,7]
[341996282,1731351054098,-266.654026,0.00022739,7]
[341996283,1731351054108,-500.0,0.00022739,2]
[341996284,1731351054119,-500.0,0.00022739,2]
[341996285,1731351054128,-500.0,0.00022739,2]
[341996286,1731351054138,-500.0,0.00022739,2]
[341996287,1731351054147,-500.0,0.00022739,2]
[341996288,1731351054157,-500.0,0.00022739,2]
[341996289,1731351054166,-500.0,0.00022739,2]
[341996290,1731351054176,-1924.03,0.00022739,2]
[341996291,1731351054185,-500.0,0.00022739,2]
[341996292,1731351054195,-574.72,0.00022739,2]
[341996293,1731351054204,-789.58,0.00022739,2]
[341996294,1731351054213,-991.28,0.00022739,2]
[341996295,1731351054222,-1962.38,0.00022739,2]
[341996296,1731351054232,-500.0,0.00022739,2]
[341996297,1731351054241,-197.434809,0.00022739,7]
[341996298,1731351054250,-197.434814,0.00022739,7]
[341996299,1731351054261,-500.0,0.00022739,2]
[341996300,1731351054271,-1584.56,0.00022739,2]
[341996301,1731351054280,-675.3,0.00022739,2]
[341996302,1731351054290,-601.90626883,0.00022739,2]
[341996303,1731351054299,-500.0,0.00022739,2]
[341996304,1731351054308,-500.0,0.00022739,2]
[341996305,1731351054317,-500.0,0.00022739,2]
[341996306,1731351054326,-151.0,0.00022739,7]
[341996307,1731351054336,-1078.92,0.00022739,2]
[341996308,1731351054345,-500.0,0.00022739,2]
[341996309,1731351054357,-500.0,0.00022739,2]
[341996310,1731351054367,-617.931559,0.00022739,7]
[341996311,1731351054377,-546.13861446,0.00022739,2]
[341996312,1731351054386,-617.931557,0.00022739,7]
[341996313,1731351054400,-187.995473,0.00022739,7]
[341996314,1731351054409,-187.99548,0.00022739,7]
[341996315,1731351054419,-500.0,0.00022739,2]
[341996316,1731351054429,-500.0,0.00022739,2]
[341996317,1731351054439,-500.0,0.00022739,2]
[341996318,1731351054449,-500.0,0.00022739,2]
[341996319,1731351054459,-500.0,0.00022739,2]
[341996320,1731351054468,-500.0,0.00022739,2]
[341996321,1731351054479,-301.76747432,0.00022739,2]
[341996322,1731351054488,-1310.51,0.00022739,2]
[341996323,1731351054498,-500.0,0.00022739,2]
[341996324,1731351054509,-500.0,0.00022739,2]
[341996325,1731351054518,-220.18,0.00022739,2]
[341996326,1731351054528,-1679.58,0.00022739,2]
[341996327,1731351054538,-509.71,0.00022739,2]
[341996328,1731351054548,-1106.48,0.00022739,2]
[341996329,1731351054556,-500.0,0.00022739,2]
[341996330,1731351054568,-500.0,0.00022739,2]
[341996331,1731351054579,-617.95,0.00022739,2]
[341996332,1731351054589,-567.992979,0.00022739,7]
[341996333,1731351054600,-606.38,0.00022739,2]
[341996334,1731351054609,-567.992983,0.00022739,7]
[341996335,1731351054619,-3771.03,0.00022739,2]
[341996336,1731351054629,-1752.08,0.00022739,2]
[341996337,1731351054639,-1149.11,0.00022739,2]
[341996338,1731351054649,-519.48,0.00022739,2]
[341996339,1731351054659,-1646.48,0.00022739,2]
[341996340,1731351054668,-500.0,0.00022739,2]
[341996341,1731351054677,-577.6690782,0.00022739,2]
[341996342,1731351054687,-500.0,0.00022739,2]
[341996343,1731351054696,-4155.43,0.00022739,2]
[341996344,1731351054706,-1467.22,0.00022739,2]
[341996345,1731351054715,-500.0,0.00022739,2]
[341996346,1731351054725,-4329.47,0.00022739,2]
[341996347,1731351054735,-500.0,0.00022739,2]
[341996348,1731351054745,-500.0,0.00022739,2]
[341996349,1731351054757,-500.0,0.00022739,2]
[341996350,1731351054766,-500.0,0.00022739,2]
[341996351,1731351054776,-398.56962029,0.00022739,2]
[341996352,1731351054786,-500.0,0.00022739,2]
[341996353,1731351054796,-500.0,0.00022739,2]
[341996354,1731351054805,-500.0,0.00022739,2]
[341996355,1731351054817,-500.0,0.00022739,2]
[341996356,1731351054826,-835.22,0.00022739,2]
[341996357,1731351054836,-500.0,0.00022739,2]
[341996358,1731351054845,-1261.72,0.00022739,2]
[341996359,1731351054854,-500.0,0.00022739,2]
[341996360,1731351054863,-500.0,0.00022739,2]
[341996361,1731351054873,-500.0,0.00022739,2]
[341996362,1731351054882,-779.77,0.00022739,2]
[341996363,1731351054891,-17411.59,0.00022739,2]
[341996364,1731351054901,-500.0,0.00022739,2]
[341996365,1731351054910,-509.48107672,0.00022739,2]
[341996366,1731351054919,-646.39,0.00022739,2]
[341996367,1731351054929,-3592.33,0.00022739,2]
[341996368,1731351054939,-723.56,0.00022739,2]
[341996369,1731351054949,-518.77,0.00022739,2]
[341996370,1731351054958,-609.39,0.00022739,2]
[341996371,1731351054968,-500.0,0.00022739,2]
[341996372,1731351054979,-500.0,0.00022739,2]
[341996373,1731351054989,-838.19,0.00022739,2]
[341996374,1731351054999,-1642.81,0.00022739,2]
[341996375,1731351055009,-1210.02,0.00022739,2]
[341996376,1731351055018,-500.0,0.00022773,2]
[341996377,1731351055027,-500.0,0.00022773,2]
[341996378,1731351055037,-500.0,0.00022773,2]
[341996379,1731351055046,-18091.50849645,0.00022783,2]
[341996381,1731351147679,273.01924944,0.00020745,2]
[341996382,1731351304723,24900.0,0.00020591,2]
[341996383,1731351316444,274.289974,0.00020591,2]
[341996384,1731351332273,167.662955,0.00013973,2]
[341996385,1731351494165,1169.27083333,0.00020845,2]
[341996386,1731351496009,17265.0565964,0.0002,10]
[341996387,1731351518077,174.131307,0.00020242,2]
[341996393,1731351807093,1169.27083333,0.00020845,2]
[341996395,1731351922962,3026.8121208,0.0002053,2]
[341996396,1731351962332,178.0,0.00027,60]
[341996398,1731351976525,274.289975,0.00020516,2]
[341996399,1731351991115,6302.8295012,0.00020531,2]
[341996400,1731351997758,167.662955,0.00013973,2]
[341996403,1731352114361,150.598,0.0002655,60]
[341996404,1731352118931,1169.27083333,0.00020845,2]
[341996449,1731352232058,-444.87492089,0.00020845,2]
[341996452,1731352232076,-429.35416533,0.00020845,2]
[341996454,1731352232088,-295.04174711,0.00020845,2]
[341996456,1731352232097,-1000.0,0.00021417,2]
[341996458,1731352232106,-434.32,0.00021507,3]
[341996460,1731352232115,-217.16,0.00021507,3]
[341996462,1731352232124,-651.49,0.00021507,3]
[341996464,1731352232133,-600.39441678,0.00021516,2]
[341996466,1731352232143,-395.0,0.00021516,2]
[341996468,1731352232152,-300.0,0.00021516,2]
[341996470,1731352232161,-300.0,0.00021516,2]
[341996472,1731352232170,-549.11373961,0.00021517,2]
[341996473,1731352232179,-5808.03469481,0.00021517,2]
[341996475,1731352232190,-142019.2947186,0.00021517,2]
[341996477,1731352232202,-15331.82898567,0.00021517,2]
[341996510,1731352238132,-1000.0,0.00021417,2]
[341996511,1731352238143,-66840.84160092,0.00021517,2]
[341996512,1731352238153,-528.17963039,0.00021573,2]
[341996513,1731352238162,-500.0,0.00021573,2]
[341996514,1731352238172,-500.0,0.00021573,2]
[341996515,1731352238181,-500.0,0.00021573,2]
[341996516,1731352238190,-500.0,0.00021573,2]
[341996517,1731352238200,-500.0,0.00021573,2]
[341996518,1731352238209,-500.0,0.00021573,2]
[341996519,1731352238218,-4408.0,0.00021679,2]
[341996520,1731352238229,-9717.97876869,0.00021817,3]
[341996521,1731352238241,-716.16,0.00021817,3]
[341996535,1731352240251,-290.0,0.00021817,3]
[341996557,1731352243468,-44830.86123131,0.00021817,3]
[341996558,1731352243477,-1377.23110672,0.000219,2]
[341996560,1731352243486,-169.5466456,0.00021916,2]
[341996562,1731352243496,-293.50736817,0.00021916,2]
[341996564,1731352243505,-500.0,0.00021916,2]
[341996565,1731352243514,-500.0,0.00021916,2]
[341996566,1731352243524,-421.84316004,0.00021916,2]
[341996567,1731352243533,-195.7516704,0.00021916,2]
[341996568,1731352243543,-268.45654233,0.00021916,2]
[341996569,1731352243552,-500.0,0.00021917,2]
[341996570,1731352243561,-511.36208417,0.00021917,2]
[341996571,1731352243570,-500.31629543,0.00021917,2]
[341996572,1731352243579,-500.0,0.00021917,2]
[341996573,1731352243588,-500.0,0.00021917,2]
[341996574,1731352243598,-500.0,0.00021917,2]
[341996575,1731352243607,-500.0,0.00021917,2]
[341996576,1731352243616,-215.59501037,0.00021917,2]
[341996577,1731352243626,-500.0,0.00021917,2]
[341996578,1731352243634,-500.0,0.00021917,2]
[341996579,1731352243644,-500.0,0.00021917,2]
[341996580,1731352243653,-500.0,0.00021917,2]
[341996581,1731352243662,-522.40581873,0.00021917,2]
[341996582,1731352243671,-500.0,0.00021917,2]
[341996583,1731352243680,-251.09161348,0.00021917,2]
[341996584,1731352243689,-639.32637579,0.00021917,2]
[341996585,1731352243698,-512.7457207,0.00021917,2]
[341996586,1731352243707,-500.0,0.00021917,2]
[341996587,1731352243716,-429.82559655,0.00021917,2]
[341996588,1731352243725,-500.0,0.00021917,2]
[341996589,1731352243734,-151.0,0.00021917,2]
[341996590,1731352243743,-151.0,0.00021917,2]
[341996591,1731352243752,-500.0,0.00021917,2]
[341996592,1731352243762,-500.0,0.00021917,2]
[341996593,1731352243771,-370.72286588,0.00021917,2]
[341996594,1731352243780,-500.0,0.00021917,2]
[341996595,1731352243790,-500.0,0.00021917,2]
[341996596,1731352243801,-500.0,0.00021917,2]
[341996597,1731352243810,-500.0,0.00021917,2]
[341996598,1731352243820,-500.0,0.00021917,2]
[341996599,1731352243831,-1603.35,0.00021917,2]
[341996600,1731352243841,-500.0,0.00021917,2]
[341996601,1731352243851,-500.0,0.00021917,2]
[341996602,1731352243860,-500.0,0.00021917,2]
[341996603,1731352243869,-500.0,0.00021917,2]
[341996604,1731352243879,-295.19609716,0.00021917,2]
[341996605,1731352243888,-500.0,0.00021917,2]
[341996606,1731352243898,-500.0,0.00021917,2]
[341996607,1731352243908,-500.0,0.00021917,2]
[341996608,1731352243917,-500.0,0.00021917,2]
[341996609,1731352243927,-500.0,0.00021917,2]
[341996610,1731352243935,-500.0,0.00021917,2]
[341996611,1731352243945,-500.0,0.00021917,2]
[341996612,1731352243954,-445.55855818,0.00021917,2]
[341996613,1731352243963,-500.0,0.00021917,2]
[341996614,1731352243973,-500.0,0.00021917,2]
[341996615,1731352243982,-657.99,0.00021917,2]
[341996616,1731352243991,-500.0,0.00021917,2]
[341996617,1731352244001,-500.0,0.00021917,2]
[341996618,1731352244010,-508.72749282,0.00021917,2]
[341996619,1731352244019,-826.06,0.00021917,2]
[341996620,1731352244029,-500.0,0.00021917,2]
[341996621,1731352244038,-500.0,0.00021917,2]
[341996622,1731352244047,-524.04469701,0.00021917,2]
[341996623,1731352244056,-500.0,0.00021917,2]
[341996624,1731352244065,-500.0,0.00021917,2]
[341996625,1731352244076,-500.0,0.00021917,2]
[341996626,1731352244086,-500.0,0.00021917,2]
[341996627,1731352244095,-500.0,0.00021917,2]
[341996628,1731352244105,-500.0,0.00021917,2]
[341996629,1731352244114,-500.0,0.00021917,2]
[341996630,1731352244123,-500.0,0.00021917,2]
[341996631,1731352244132,-338.19836687,0.00021917,2]
[341996632,1731352244141,-500.0,0.00021917,2]
[341996633,1731352244150,-500.0,0.00021917,2]
[341996634,1731352244160,-500.0,0.00021917,2]
[341996635,1731352244169,-1635.32,0.00021917,2]
[341996636,1731352244178,-500.0,0.00021917,2]
[341996637,1731352244187,-500.0,0.00021917,2]
[341996638,1731352244196,-500.0,0.00021917,2]
[341996639,1731352244205,-500.0,0.00021917,2]
[341996640,1731352244214,-500.0,0.00021917,2]
[341996641,1731352244224,-500.0,0.00021917,2]
[341996642,1731352244233,-2336.0,0.00021917,2]
[341996643,1731352244371,-500.0,0.00021917,2]
[341996644,1731352244381,-500.0,0.00021917,2]
[341996645,1731352244391,-500.0,0.00021917,2]
[341996646,1731352244400,-500.0,0.00021917,2]
[341996647,1731352244409,-500.0,0.00021917,2]
[341996648,1731352244419,-500.0,0.00021917,2]
[341996649,1731352244429,-1320.46,0.00021917,2]
[341996650,1731352244438,-500.0,0.00021917,2]
[341996651,1731352244447,-500.0,0.00021917,2]
[341996652,1731352244456,-500.0,0.00021917,2]
[341996653,1731352244466,-500.0,0.00021917,2]
[341996654,1731352244476,-500.0,0.00021917,2]
[341996655,1731352244486,-500.0,0.00021917,2]
[341996656,1731352244495,-500.0,0.00021917,2]
[341996657,1731352244505,-500.0,0.00021917,2]
[341996658,1731352244514,-562.75,0.00021917,2]
[341996659,1731352244523,-500.0,0.00021917,2]
[341996660,1731352244533,-500.0,0.00021917,2]
[341996661,1731352244542,-500.0,0.00021917,2]